Cogmind - Beta 14 @@@ ROGUE MODE // 2024.10.26 @ 18:47:05 Player: toydarian Result: Self-destructed Performance ------------- Evolutions (2) 1000 Regions Visited (8) 1600 Robots Destroyed (60) 300 Value Destroyed (1778) 1778 Prototype IDs (4) 80 Alien Tech Used (0) 0 Bonus (871) 871 TOTAL SCORE: 5629 Bonus ------- High Alert Combat Kills 24 Follower Combat Kills 561 Aligned with FarCom 300 Friendly Fire -14 Cogmind --------- Core Integrity 304/550 Matter 219/300 Energy 9/125 System Corruption 0% Temperature Cool (9) Movement Flying (249) Ox3 Location -8/Storage Parts ------- > --- POWER (1) -------- Light Ion Engine > --- PROPULSION (4) --- Improved Aluminum Leg Improved VTOL Module Improved VTOL Module Improved VTOL Module > --- UTILITY (4) ------ High-capacity Storage Unit Modified TNC > --- WEAPON (2) ------- Particle Gun > --- INVENTORY (20) --- Aluminum Leg Improved Aluminum Leg Improved VTOL Module Medium Matter Pod (100) Compact Matter Pod (150) Compact Matter Pod (150) Hardened Medium Armor Plating Hardened Medium Armor Plating Layered Light Armor Plating Layered Light Armor Plating Layered Light Armor Plating Layered Light Armor Plating EMP Blaster Missile Launcher Missile Launcher Hammer Peak State ------------ > --- POWER ------------ Improved Ion Engine > --- PROPULSION ------- Improved Aluminum Leg Improved Aluminum Leg Improved Aluminum Leg VSS Leg > --- UTILITY ---------- High-capacity Storage Unit Modified TNC Hardened Medium Armor Plating Hardened Medium Armor Plating > --- WEAPON ----------- Assault Rifle Missile Launcher > --- INVENTORY -------- Ion Engine Light Ion Engine Aluminum Leg Improved Aluminum Leg Improved VTOL Module Improved VTOL Module Improved VTOL Module Improved VTOL Module Medium Matter Pod Compact Matter Pod Compact Matter Pod Experimental Sensor Array Light Armor Plating Hardened Medium Armor Plating Particle Gun Assault Rifle Assault Rifle EMP Blaster Missile Launcher Hammer [Rating: 33] Favorites ----------- Power Ion Engine Engine Ion Engine Propulsion Light Treads Treads Light Treads Leg Improved Aluminum Leg Flight Unit Improved VTOL Module Utility High-capacity Storage Unit Device Improved Terrain Scanner Storage High-capacity Storage Unit Processor Modified TNC Hackware Hacking Suite Protection Hardened Medium Armor Plating Weapon Assault Rifle Energy Gun Particle Gun Energy Cannon Guided Plasma Cannon Ballistic Gun Assault Rifle Launcher Missile Launcher Impact Weapon Hammer Build | -11 -10 -10 -9 -9 -9 -8 -8 -8 ------- Run | Yrd Mat Min Mat Min Exi Min Mat Sto Slots Evolved 4 | . . . 2 . . . 2 . Power . | . . . . . . . . . Propulsion 2 | . . . 1 . . . 1 . Utility 2 | . . . 1 . . . 1 . Weapon . | . . . . . . . . . Parts Attached 76 | 7 1 . 9 8 5 . 33 13 Power 6 | 1 . . 1 1 . . 2 1 Engine 6 | 1 . . 1 1 . . 2 1 Core . | . . . . . . . . . Reactor . | . . . . . . . . . Propulsion 26 | 2 . . 5 3 . . 9 7 Treads 8 | 2 . . 4 2 . . . . Leg 14 | . . . . 1 . . 9 4 Wheel . | . . . . . . . . . Hover . | . . . . . . . . . Flight 4 | . . . 1 . . . . 3 Utility 12 | 2 1 . 2 1 3 . 3 . Device 3 | 1 . . . . 1 . 1 . Storage 2 | 1 1 . . . . . . . Processor 1 | . . . . . 1 . . . Hackware 1 | . . . . . . . 1 . Protection 5 | . . . 2 1 1 . 1 . Artifact . | . . . . . . . . . Weapon 32 | 2 . . 1 3 2 . 19 5 Energy Gun 3 | . . . . . . . 2 1 Energy Cannon 1 | . . . . . 1 . . . Ballistic Gun 17 | 2 . . 1 3 1 . 8 2 Ballistic Cannon . | . . . . . . . . . Launcher 8 | . . . . . . . 7 1 Special Weapon . | . . . . . . . . . Impact Weapon 3 | . . . . . . . 2 1 Slashing Weapon . | . . . . . . . . . Piercing Weapon . | . . . . . . . . . Special Melee Weapon . | . . . . . . . . . Unidentified Prototypes 4 | . . . 1 . 3 . . . Parts Lost 20 | . . . 2 7 . . 3 8 Power 4 | . . . 1 1 . . 1 1 Propulsion 7 | . . . . 3 . . 1 3 Utility 3 | . . . . 1 . . . 2 Weapon 6 | . . . 1 2 . . 1 2 Highest Loss Streak 6 | . . . 1 5 . . 2 6 To Critical Strikes . | . . . . . . . . . Average Slot Usage (%) 98 | . 100 100 98 98 100 100 98 94 Engine 10 | . 14 14 10 10 11 11 9 8 Treads 16 | . 28 28 32 26 22 22 1 . Leg 16 | . . . . 5 11 11 34 32 Device 8 | . 14 14 11 11 6 . 4 9 Storage 10 | . 14 14 11 11 11 11 9 9 Processor 4 | . . . . . 4 11 9 9 Hackware 1 | . . . . . . . 3 7 Protection 8 | . . . 11 11 11 11 8 . Ballistic Gun 19 | . 28 28 21 21 22 22 14 13 Impact Weapon 1 | . . . . . . . 2 3 Peak Build Rating 33 | 9 10 10 18 18 26 21 33 30 Average Rating 20 | 5 9 10 15 16 18 21 27 26 On Entrance 14 | . 9 10 10 16 17 21 21 28 Naked Turns . | . . . . . . . . . Heaviest Build 71 | 15 50 50 59 59 58 57 71 50 Greatest Support 60 | 40 40 40 60 60 40 40 51 51 Greatest Overweight (x) 5 | 2 1 1 . 2 1 1 5 1 Average Overweight (x) . | . . 1 . . 1 1 . . Largest Inventory Capacity 20 | 8 20 20 20 20 20 20 20 20 Average Capacity 19 | 7 17 20 20 20 20 20 20 20 Most Carried 20 | 7 17 17 20 20 20 19 20 20 Average Carried 17 | 4 12 17 17 17 18 19 19 19 Final Capacity 20 | 8 20 20 20 20 20 20 20 20 Final Carried 20 | 7 17 17 20 18 19 19 20 16 Class Distribution -------------------- 46% | Mutant 29% | Scavenger-Mutant 8% | Scavenger-Skirmisher 6% | Scavenger-Assassin 3% | Commander-Skirmisher Dominant Class ---------------- Mutant | -10/Materials Mutant | -10/Mines Mutant | -9/Materials Scavenger-Mutant | -9/Mines Scavenger-Mutant | -9/Exiles Mutant | -8/Mines Mutant | -8/Materials Commander-Skirmisher | -8/Storage Resources | -11 -10 -10 -9 -9 -9 -8 -8 -8 ----------- Run | Yrd Mat Min Mat Min Exi Min Mat Sto Matter Collected 1964 | 312 130 . 237 348 . . 810 127 Remotely . | . . . . . . . . . Salvage Created 1892 | 98 309 . 193 255 . . 924 113 Parts 133 | 4 15 . 18 18 . . 73 5 Haulers Intercepted 2 | . 1 . . . . . 1 . Recyclers Shooed . | . . . . . . . . . Parts Field Recycled . | . . . . . . . . . Retrieved Matter . | . . . . . . . . . Parts Self-Destructed . | . . . . . . . . . Prevented . | . . . . . . . . . Kills | -11 -10 -10 -9 -9 -9 -8 -8 -8 ------- Run | Yrd Mat Min Mat Min Exi Min Mat Sto Combat Hostiles Destroyed 44 | . 5 . 5 8 . . 23 3 Guns 31 | . 5 . 5 8 . . 10 3 AOE 12 | . . . . . . . 12 . Classes Destroyed 13 | 2 3 . 3 1 . . 4 . Worker 1 | . . . . . . . 1 . Builder 6 | . . . . 1 . . 5 . Tunneler 2 | 1 . . . . . . 1 . Hauler 2 | . 1 . . . . . 1 . Recycler 1 | 1 . . . . . . . . Operator 3 | . 1 . . . . . 2 . Watcher 1 | . . . 1 . . . . . Swarmer 9 | . . . 2 3 . . 3 1 Grunt 27 | . 5 . 2 5 . . 13 2 Brawler 1 | . . . . . . . 1 . Duelist 1 | . . . . . . . 1 . Sentry 4 | . . . 1 . . . 3 . Specialist 2 | . . . . . . . 2 . Best Kill Streak 6 | 1 3 . 2 3 . . 6 1 Combat Bots Only 3 | . 3 . 2 3 . . 3 1 Max Kills in Single Turn 3 | 1 1 . 1 1 . . 3 1 Gunslinging . | . . . . . . . . . Exploded 2 | . . . . . . . 2 . Melee . | . . . . . . . . . Uniques/NPCs Destroyed . | . . . . . . . . . Combat | -11 -10 -10 -9 -9 -9 -8 -8 -8 -------- Run | Yrd Mat Min Mat Min Exi Min Mat Sto Hostile Shots Fired 301 | . 51 . 44 75 . . 88 43 Missed 79 | . 14 . 11 17 . . 27 10 Damage Taken 3604 | . 470 . 481 1113 . . 945 595 Core 621 | . 110 . 16 249 . . 74 172 Absorbed by Shields . | . . . . . . . . . Core Remaining (%) 63 | 100 . 56 . . . 33 . . Volleys Fired 172 | 8 21 . 25 33 . . 63 22 Largest 2 | 2 2 . 2 2 . . 2 2 Hottest 85 | 40 40 . 43 43 . . 85 85 Shots Fired 321 | 16 42 . 50 66 . . 118 29 Gun 306 | 16 42 . 50 66 . . 104 28 Cannon . | . . . . . . . . . Launcher 15 | . . . . . . . 14 1 Special . | . . . . . . . . . Kinetic 295 | 16 42 . 50 66 . . 98 23 Thermal 11 | . . . . . . . 6 5 Explosive 15 | . . . . . . . 14 1 Electromagnetic . | . . . . . . . . . Robot Hit Streak 21 | 3 15 . 9 9 . . 21 5 Robot Miss Streak 4 | 4 2 . 2 3 . . 3 2 Penetration Max . | . . . . . . . . . Secondary Targets 5 | . 1 . . 2 . . 1 1 Max Gunslinging Chain 1 | . 1 . . 1 . . 1 1 Shots Hit Robots 224 | 7 29 . 38 47 . . 82 21 Core Hits 112 | 3 13 . 11 16 . . 60 9 Critical Kills 1 | . 1 . . . . . . . Critical Parts Destroyed 2 | . . . 1 . . . 1 . Critical Strikes 3 | . 1 . 1 . . . 1 . Destroy 2 | . 1 . 1 . . . . . Smash 1 | . . . . . . . 1 . Melee Attacks 24 | . . . . . . . 13 11 Impact 24 | . . . . . . . 13 11 Slashing . | . . . . . . . . . Piercing . | . . . . . . . . . Sneak Attacks . | . . . . . . . . . Combat Hostiles . | . . . . . . . . . Follow-up Attacks . | . . . . . . . . . Damage Inflicted 4382 | 96 375 . 506 628 . . 2490 287 Guns 2725 | 96 375 . 506 628 . . 849 271 Cannons . | . . . . . . . . . Explosions 1498 | . . . . . . . 1482 16 Melee 159 | . . . . . . . 159 . Ramming . | . . . . . . . . . Kinetic 2627 | 96 375 . 506 628 . . 783 239 Thermal 98 | . . . . . . . 66 32 Explosive 1498 | . . . . . . . 1482 16 Electromagnetic . | . . . . . . . . . Impact 159 | . . . . . . . 159 . Slashing . | . . . . . . . . . Piercing . | . . . . . . . . . Highest Corruption . | . . . . . . . . . Average Corruption . | . . . . . . . . . Corruption Purged . | . . . . . . . . . Corruption Blocked . | . . . . . . . . . Overload Shots . | . . . . . . . . . Overflow Damage 55 | . . . . . . . 55 . Projectiles . | . . . . . . . . . Explosions 38 | . . . . . . . 38 . Melee 17 | . . . . . . . 17 . Knockbacks . | . . . . . . . . . Impact . | . . . . . . . . . Kinetic . | . . . . . . . . . Secondary . | . . . . . . . . . Self-Inflicted Damage . | . . . . . . . . . Shots . | . . . . . . . . . Rammed . | . . . . . . . . . Targets Rammed . | . . . . . . . . . Kicked . | . . . . . . . . . Crushed . | . . . . . . . . . Highest Temperature 94 | . 8 . 12 36 . . 94 21 Average Temperature 14 | . 2 . 5 14 . . 17 11 Received Heat Transfer 1469 | . 264 . 249 263 . . 414 279 Siege Activations . | . . . . . . . . . Robots Corrupted 1 | . . . . . . . 1 . Combat Hostiles 1 | . . . . . . . 1 . Parts Fried . | . . . . . . . . . Impact Corruptions 1 | . . . . . . . 1 . Robots Melted . | . . . . . . . . . Combat Hostiles . | . . . . . . . . . Parts Melted 1 | . . . . . . . . 1 Heat Transferred 222 | . . . . . . . 148 74 Parts Sabotaged . | . . . . . . . . . Parts Stolen . | . . . . . . . . . Parts Stripped . | . . . . . . . . . Power Chain Reactions . | . . . . . . . . . Alert | -11 -10 -10 -9 -9 -9 -8 -8 -8 ------- Run | Yrd Mat Min Mat Min Exi Min Mat Sto Peak Influence 607 | 10 180 27 266 121 . . 346 607 Initial 145 | . 6 27 10 51 . . . 145 Average 102 | 4 59 27 153 36 . . 120 356 Maximum Alert Level 2 | . . . 1 . . . 1 2 Low Security (%) 78 | 100 100 100 54 100 . 100 66 28 Level 1 18 | . . . 45 . . . 33 21 Level 2 3 | . . . . . . . . 50 Level 3 . | . . . . . . . . . Level 4 . | . . . . . . . . . Level 5 . | . . . . . . . . . High Security . | . . . . . . . . . Max Security . | . . . . . . . . . Squads Dispatched 13 | . 2 . . . . . 5 6 Investigation 3 | . . . . . . . 2 1 Extermination . | . . . . . . . . . Reinforcement 7 | . 2 . . . . . 3 2 Assault . | . . . . . . . . . Garrison 3 | . . . . . . . . 3 Intercept . | . . . . . . . . . Searches Triggered . | . . . . . . . . . Construction Impeded 1 | . . . . . . . . 1 Haulers Reinforced . | . . . . . . . . . Active Scanning Responses . | . . . . . . . . . Cargo Convoy Interrupts . | . . . . . . . . . Stealth | -11 -10 -10 -9 -9 -9 -8 -8 -8 --------- Run | Yrd Mat Min Mat Min Exi Min Mat Sto Distress Signals 9 | . 1 . 1 . . . 6 1 Communications Jammed . | . . . . . . . . . Distress Signals . | . . . . . . . . . Times Spotted 136 | . 16 . 16 33 . . 49 22 Peak Tracking Total 17 | . 6 . 5 17 . . 6 7 Tactical Retreats 6 | . . . 3 1 . . 2 . Traps | -11 -10 -10 -9 -9 -9 -8 -8 -8 ------- Run | Yrd Mat Min Mat Min Exi Min Mat Sto Traps Triggered 1 | . . . . . . . . 1 Indirectly . | . . . . . . . . . Trap Hack Attempts . | . . . . . . . . . Triggered . | . . . . . . . . . Disarmed . | . . . . . . . . . Reprogrammed . | . . . . . . . . . Reused . | . . . . . . . . . Traps Extracted . | . . . . . . . . . Installed . | . . . . . . . . . Triggered . | . . . . . . . . . Machines | -11 -10 -10 -9 -9 -9 -8 -8 -8 ---------- Run | Yrd Mat Min Mat Min Exi Min Mat Sto Machines Disabled 4 | . . . . . . . 3 1 Max in Single Turn 2 | . . . . . . . 2 . Machines Repaired . | . . . . . . . . . Machines Dismantled . | . . . . . . . . . Machines Sabotaged . | . . . . . . . . . Overloaded Fab Kills . | . . . . . . . . . Hacking | -11 -10 -10 -9 -9 -9 -8 -8 -8 --------- Run | Yrd Mat Min Mat Min Exi Min Mat Sto Machines Accessed 15 | . 1 . 3 . . . 6 5 Terminals 15 | . 1 . 3 . . . 6 5 Fabricators . | . . . . . . . . . Repair Stations . | . . . . . . . . . Recycling Units . | . . . . . . . . . Scanalyzers . | . . . . . . . . . Garrison Access . | . . . . . . . . . Total Hacks 28 | . 1 . 4 . . . 14 9 Successful 12 | . 1 . 3 . . . 5 3 Failed 16 | . . . 1 . . . 9 6 Catastrophic 5 | . . . . . . . 3 2 Database Lockouts . | . . . . . . . . . Manual 27 | . 1 . 4 . 1 . 15 6 Terminals 28 | . 1 . 4 . . . 14 9 Fabricators . | . . . . . . . . . Repair Stations . | . . . . . . . . . Recycling Units . | . . . . . . . . . Scanalyzers . | . . . . . . . . . Garrison Access . | . . . . . . . . . Terminal Hacks 12 | . 1 . 3 . . . 5 3 Part Schematic 1 | . . . . . . . 1 . Open Door 1 | . . . . . . . . 1 Branch Access Points 1 | . . . 1 . . . . . Alert Level 3 | . . . . . . . 2 1 Locate Traps 4 | . 1 . 1 . . . 2 . Assault Status 1 | . . . . . . . . 1 Registered Components 1 | . . . 1 . . . . . Fabricator Hacks . | . . . . . . . . . Repair Station Hacks . | . . . . . . . . . Recycling Unit Hacks . | . . . . . . . . . Scanalyzer . | . . . . . . . . . Garrison Access Hacks . | . . . . . . . . . Unauthorized Hacks . | . . . . . . . . . Terminals . | . . . . . . . . . Fabricators . | . . . . . . . . . Repair Stations . | . . . . . . . . . Recycling Units . | . . . . . . . . . Scanalyzers . | . . . . . . . . . Garrison Access . | . . . . . . . . . Data Cores Recovered 1 | . . . . . . . . 1 Used . | . . . . . . . . . Hacking Detections 11 | . 1 . . . . . 6 4 Full Trace Events 4 | . . . . . . . 3 1 Feedback Events 1 | . . . . . . . . 1 Hackware Fried 1 | . . . . . . . . 1 Feedback Blocked . | . . . . . . . . . Robot Schematics Acquired . | . . . . . . . . . Robots Built . | . . . . . . . . . Authchips . | . . . . . . . . . Time . | . . . . . . . . . Total Robot Build Rating . | . . . . . . . . . Part Schematics Acquired 1 | . . . . . . . 1 . Parts Built . | . . . . . . . . . Authchips . | . . . . . . . . . Time . | . . . . . . . . . Total Part Build Rating . | . . . . . . . . . Parts Repaired . | . . . . . . . . . Time . | . . . . . . . . . Parts Recycled . | . . . . . . . . . Recycled Matter . | . . . . . . . . . Retrieved Matter . | . . . . . . . . . Retrieved Components . | . . . . . . . . . Parts Scanalyzed . | . . . . . . . . . Part Schematics Acquired . | . . . . . . . . . Parts Damaged . | . . . . . . . . . Bothacking | -11 -10 -10 -9 -9 -9 -8 -8 -8 ------------ Run | Yrd Mat Min Mat Min Exi Min Mat Sto Used RIF Installer . | . . . . . . . . . Robots Hacked . | . . . . . . . . . Non-combat . | . . . . . . . . . Combat . | . . . . . . . . . Robot Hacks Applied . | . . . . . . . . . Relay Couplers Released . | . . . . . . . . . Fabnet Peak Effective % . | . . . . . . . . . Robots Rewired . | . . . . . . . . . Allies Hacked . | . . . . . . . . . Hacks Repelled . | . . . . . . . . . Allies | -11 -10 -10 -9 -9 -9 -8 -8 -8 -------- Run | Yrd Mat Min Mat Min Exi Min Mat Sto Total Allies 12 | . . 2 . . . . . 10 Largest Group 10 | . . 2 2 . . . . 10 Highest-Rated Group 173 | . . 57 57 . . . . 173 Highest-Rated Ally 31 | . . 31 31 . . . . 29 Total Orders . | . . . . . . . . . Ally Attacks 121 | . . . 23 . . . . 98 Total Damage 1512 | . . . 314 . . . . 1198 Kills 24 | . . . 6 . . . . 18 Allies Corrupted . | . . . . . . . . . Allies Melted . | . . . . . . . . . Intel | -11 -10 -10 -9 -9 -9 -8 -8 -8 ------- Run | Yrd Mat Min Mat Min Exi Min Mat Sto Robot Analysis Total . | . . . . . . . . . Derelict Logs Recovered 2 | . . . . 2 . . . . Drone Launches . | . . . . . . . . . Drone Recoveries . | . . . . . . . . . Exploration | -11 -10 -10 -9 -9 -9 -8 -8 -8 ------------- Run | Yrd Mat Min Mat Min Exi Min Mat Sto Turns Passed 6875 | 152 767 46 664 1850 558 101 2297 440 Spaces Moved 3314 | 72 315 20 322 855 229 43 1185 273 Core 4 | 4 . . . . . . . . Treads 1872 | 68 315 20 322 855 229 43 20 . Legs 1438 | . . . . . . . 1165 273 Wheels . | . . . . . . . . . Hover . | . . . . . . . . . Flight . | . . . . . . . . . Fastest Speed 50 | 50 160 240 160 160 240 240 112 112 Average Speed 178 | 155 218 240 160 201 240 240 157 122 Slowest Speed 470 | 160 240 240 160 320 240 240 470 190 Overloaded Moves . | . . . . . . . . . Propulsion Burnouts . | . . . . . . . . . Robots Hopped . | . . . . . . . . . Cave-ins Triggered . | . . . . . . . . . Exploration Rate (%) 41 | 5 38 10 30 99 60 28 61 42 Regions Visited 8 Branch Regions 5 Pre-discovered Areas . | . . . . . . . . . Known Exits Taken 1 | . . . 1 . . . . . Unknown Exits Taken 7 | 1 1 1 . 1 1 1 1 . Scrap Searched 1 | . . . . 1 . . . . Spaces Dug 66 | . . . . . . . 59 7 Terrain Destroyed 209 | . . . . . . . 185 24 Melee 12 | . . . . . . . 5 7 Projectile . | . . . . . . . . . AOE 197 | . . . . . . . 180 17 Terrain Rammed . | . . . . . . . . . Walls Destroyed . | . . . . . . . . . Machines Disabled . | . . . . . . . . . Actions | -11 -10 -10 -9 -9 -9 -8 -8 -8 --------- Run | Yrd Mat Min Mat Min Exi Min Mat Sto Total 3888 | 93 354 19 423 921 237 42 1471 328 Wait 230 | . 7 . 46 18 . . 154 5 Move 3306 | 71 314 19 321 854 228 42 1184 273 Hop . | . . . . . . . . . Pick Up 52 | 7 10 . 13 7 2 . 12 1 Fast Attach 13 | 7 . . . . . . 3 3 Attach 21 | . . . 3 8 1 . 4 5 Detach 1 | . . . . . 1 . . . Swap 42 | . 1 . 6 . 4 . 26 5 Drop 27 | . 1 . 9 1 1 . 12 3 Fire 172 | 8 21 . 25 33 . . 63 22 Melee 24 | . . . . . . . 13 11 Ram . | . . . . . . . . . Kick . | . . . . . . . . . Crush . | . . . . . . . . . Escape Stasis . | . . . . . . . . . Rewire . | . . . . . . . . . Trap . | . . . . . . . . . Miscellaneous . | . . . . . . . . . Route ------- -11/Scrapyard -10/Materials (discovered 2 exits: *Mat / [*Min]) -10/Mines -9/Materials (discovered 2 exits: *Mat / *Min) -9/Mines (discovered 4 exits: *Mat x2 / *Exi / [*Zio]) -9/Exiles (discovered 2 exits: [*Min x2]) -8/Mines -8/Materials -8/Storage History --------- Turn | Location | Event 12 | -11/Scrapyard | Discovered new exit (range 15) 153 | -11/Scrapyard | Entered Materials 315 | -10/Materials | Build established: Mutant 353 | -10/Materials | Discovered new exit (range 7) 849 | -10/Materials | Discovered new exit (range 8) 920 | -10/Materials | Entered Mines 942 | -10/Mines | Discovered new exit (range 11) 966 | -10/Mines | Entered Materials 966 | -9/Materials | Accompanied by 2 allies 966 | -9/Materials | Evolved 2 slots: Propulsion x1, Utility x1 971 | -9/Materials | Led the pair of lost Derelicts to an unsafe place 1389 | -9/Materials | Discovered new exit (range 7) 1411 | -9/Materials | Identified exit to Mines 1630 | -9/Materials | Entered Mines 1689 | -9/Mines | Build established: Scavenger-Mutant 1775 | -9/Mines | Learned Materials stockpile data 1822 | -9/Mines | Found a damaged Exp. Sensor Array with a note attached 1825 | -9/Mines | Found Prototype Device 1878 | -9/Mines | A Derelict revealed a hidden shortcut to a safe place 2014 | -9/Mines | Assembled infested the area 2019 | -9/Mines | Assisted by a Guerilla fighting off Assembled 2081 | -9/Mines | Lost 5 parts (2n1u2w) 2228 | -9/Mines | Discovered new exit (range 7) 2294 | -9/Mines | Learned Materials stockpile data 2308 | -9/Mines | Discovered new exit (range 13) 2341 | -9/Mines | Build established: Mutant 2370 | -9/Mines | Core integrity fell below 50% 2889 | -9/Mines | Build established: Scavenger-Mutant 3468 | -9/Mines | Deemed a non-threat by the Exiles lab entrance 3470 | -9/Mines | Discovered new exit (range 5) 3480 | -9/Mines | Entered Exiles 3516 | -9/Exiles | Discovered new exit (range 15) 3562 | -9/Exiles | Met 8R-AWN 3605 | -9/Exiles | Met EX-HEX 3668 | -9/Exiles | Met EX-BIN 3696 | -9/Exiles | Aligned with FarCom system 3699 | -9/Exiles | Given EX-Vault access code 3754 | -9/Exiles | Opened EX-Vault 3776 | -9/Exiles | Found Prototype Energy Cannon 3777 | -9/Exiles | Identified Gui. Plasma Cannon 3807 | -9/Exiles | Found Prototype Processor 3808 | -9/Exiles | Identified Modified TNC 3859 | -9/Exiles | Warned to stay clear of 0b10 Research branches 3927 | -9/Exiles | Met EX-DEC 4008 | -9/Exiles | Discovered new exit (range 14) 4025 | -9/Exiles | Identified Exp. Sensor Array 4038 | -9/Exiles | Left Exiles lab with Modified TNC 4038 | -9/Exiles | Entered Mines 4105 | -8/Mines | Build established: Mutant 4122 | -8/Mines | Discovered new exit (range 8) 4139 | -8/Mines | Entered Materials 4139 | -8/Materials | Evolved 2 slots: Propulsion x1, Utility x1 5928 | -8/Materials | Build established: Scavenger-Skirmisher 6371 | -8/Materials | Build established: Scavenger-Assassin 6424 | -8/Materials | Discovered new exit (range 5) 6436 | -8/Materials | Entered Storage 6462 | -8/Storage | Assisted by bots powering up and referring to "LRC-V3" 6560 | -8/Storage | Garrison activated, responded to threat 6787 | -8/Storage | Hacking Suite fried by hacking feedback 6876 | -8/Storage | Self-destructed Last Messages --------------- 06856_ K-01 Serf collects debris. 06856_ G-47 Trooper overheating. 06858_ G-47 Trooper suffers critical hit (Burn). 06858_ G-47 Trooper destroyed. 06859_ K-01 Serf collects debris. 06860_ G-47 Trooper suffers critical hit (Burn). 06862_ Aluminum Leg destroyed. 06862_ Trooper 3g destroyed. 06864_ K-01 Serf collects debris. 06866_ G-47 Trooper heat short circuits Imp. Heat Sink. 06866_ Particle Gun melted. 06866_ G-47 Trooper destroyed. 06866_ Switching to secondary target: Y-45 Defender. 06867_ Trooper 3i destroyed. 06868_ K-01 Serf collects debris. 06871_ Acquired Aluminum Leg. 06871_ K-01 Serf collects debris. 06873_ Assault Rifle destroyed. 06874_ K-01 Serf collects debris. 06876_ Structural Scanner destroyed. Map ----- +----------------------------------------------------+ | # """ # ############?#####??## # | | # """ # # ! ###????????## # | | # """ # # = ##????????? + + | | # # # ##????????? # # | | # # # % ##??????????? # | | ######### # ##??????????? # | | ######### // ##??????????????? | | ???????## # ! ##??????????????? | | ######### # ##??????????????? | | ######### # ##??????????????? | | # # #####+#####??????????????? | | # # ##### #####??????????????? | | # # ##?## ##?????????????????? | | # """# ##?## ##?????????????????? | | # """# ##?## ####???????????????? | | # """# ##?## ####???????????????? | | # + a ##### / " ???????????????? | | # """# ##### #T##???????????????? | | # """# *% %*####???????????????? | | # """# = ##### ####???????????????? | | # +%%[##### ##?????????????????? | | ##########+###### ##### ?????????????? | | ####### [==[%= ##+##### ?????????????? | | ????### [%"""[=# =! # ????????????? | | ????###[=%"""=%# !!####????????????? | | ????##T %*"""@[# ""##????????????? | | ????### *!%g!l# """ T"##????????????? | | ????### ""=!*# """ ""##????????????? | | ?????## o"""gY/%""" ####????????????? | | ?????## ""%!%#= ####????????????? | | ?????## =*k!=########??????????????? | | ?????######+##### ??????????????? | | ?????###### #####????????????????????? | | ?????????## ?????????????????????????? | | ?????????## ???????????????????????a?? | | ?????????????????????????????????????? | | ?????????????????????????????????????? | | ??????????????w???a??????????????????? | | ?????????????????????????????????????? | | ?????????????????????????????????????? | | ?????????????????????????????????????? | | ?????????????????????????????????????? | | ?????????????????????????????????????? | | ?????????????????????????????????????? | | ?????????????????????????????????????? | | ?????????????????????????????????????? | | ?????????????????????????????????????? | | | | | | | +----------------------------------------------------+ Best States ------------- Heat Dissipation 31 Energy Generation 12 Energy Capacity 265 Matter Stores 300 Matter Capacity 300 Sight Range 16 Terrain Scan Range 16 Terrain Scan Density 10 Armor Coverage 450 Evasion (%) 55 Recoil Reduction 3 Offensive Hacking 10 Item Schematics ----------------- Structural Scanner | -8/Materials | Hacked Robot Schematics ------------------ None Fabricated ------------ Nothing Alien Tech Used ----------------- None Achievements -------------- Slippery One Challenges ------------ None Game ------ Seed SuspensionMiningRefractor Manual? 0 Play Time 00:54:19 Cumulative 26.0 hours Start 2024.10.26 @ 12:38:48 End 2024.10.26 @ 18:47:05 Sessions 3 Manual Loads 0 Difficulty Rogue Special Mode None Game No. 33 Rogue 26 Adventurer 0 Explorer 7 Win Type - Total 1 Types 1/0/0/0/0/0/0/0/0 Lore% 11 Gallery% 20 Achievement% 25 Wizard Run 0 Options --------- Layout 0 ASCII 0 Keyboard 0 Movement Mouse Keybinds 0 Fullscreen 1 Font 24/Terminus Map View 76x50 Zoom Use 0% Tactical HUD 1 Map Filters NONE Filters NONE Steam 1 RUN: ed5a5135-849e-41e3-8494-3f24d3ed4e31